[Event "Late-Titled-Tuesday-Blitz-June-04-2024"]
[Site "Chess.com"]
[Date "2024.06.04"]
[Round "8"]
[White "Msb2"]
[Black "Shankland"]
[Result "1/2-1/2"]
[WhiteElo "3040"]
[BlackElo "2975"]
[TimeControl "180+1"]
[EndTime "15:26:56 PDT"]
[Termination "Game drawn by repetition"]

1. d4 {[%clk 0:03:00.9]} 1... Nf6 {[%clk 0:02:59.6]} 2. c4 {[%clk 0:03:01.3]}
2... g6 {[%clk 0:02:59.8]} 3. Nc3 {[%clk 0:03:01.8]} 3... d5 {[%clk 0:02:59.6]}
4. cxd5 {[%clk 0:03:02.6]} 4... Nxd5 {[%clk 0:03:00]} 5. e4 {[%clk 0:03:03.2]}
5... Nxc3 {[%clk 0:02:58.3]} 6. bxc3 {[%clk 0:03:04.1]} 6... Bg7 {[%clk
0:02:58.8]} 7. Nf3 {[%clk 0:03:04.7]} 7... c5 {[%clk 0:02:58.6]} 8. Bb5+ {[%clk
0:03:05.3]} 8... Bd7 {[%clk 0:02:57.3]} 9. Bxd7+ {[%clk 0:03:05.2]} 9... Qxd7
{[%clk 0:02:57.2]} 10. O-O {[%clk 0:03:06.1]} 10... O-O {[%clk 0:02:56.3]} 11.
Be3 {[%clk 0:03:06.7]} 11... Rc8 {[%clk 0:02:49]} 12. Rc1 {[%clk 0:03:03.6]}
12... Nc6 {[%clk 0:02:39.6]} 13. d5 {[%clk 0:03:01.2]} 13... Na5 {[%clk
0:02:38.1]} 14. c4 {[%clk 0:02:59.1]} 14... b5 {[%clk 0:02:38.2]} 15. cxb5
{[%clk 0:02:50.6]} 15... Qxb5 {[%clk 0:02:38.1]} 16. Qc2 {[%clk 0:02:48.6]}
16... c4 {[%clk 0:02:15.4]} 17. Bd4 {[%clk 0:02:38.8]} 17... c3 {[%clk
0:02:10.8]} 18. Rfd1 {[%clk 0:02:37.2]} 18... Rab8 {[%clk 0:02:08.3]} 19. h4
{[%clk 0:02:25.5]} 19... Qb2 {[%clk 0:01:58.5]} 20. Qd3 {[%clk 0:02:24.3]} 20...
Bxd4 {[%clk 0:01:55.3]} 21. Nxd4 {[%clk 0:02:25.2]} 21... Qxa2 {[%clk
0:01:20.9]} 22. Ra1 {[%clk 0:02:04.2]} 22... Qb2 {[%clk 0:01:01.4]} 23. Rxa5
{[%clk 0:01:41.2]} 23... c2 {[%clk 0:01:00.4]} 24. Nxc2 {[%clk 0:01:41.7]} 24...
Rxc2 {[%clk 0:01:00]} 25. Qg3 {[%clk 0:01:35.1]} 25... Rb7 {[%clk 0:00:49.5]}
26. h5 {[%clk 0:01:32]} 26... Rc1 {[%clk 0:00:45.4]} 27. Qg4 {[%clk 0:01:17.4]}
27... Rxd1+ {[%clk 0:00:38.9]} 28. Qxd1 {[%clk 0:01:18.3]} 28... Rc7 {[%clk
0:00:39.1]} 29. Qf3 {[%clk 0:00:55.8]} 29... Rc1+ {[%clk 0:00:26]} 30. Kh2
{[%clk 0:00:56.3]} 30... Qe5+ {[%clk 0:00:26.5]} 31. g3 {[%clk 0:00:56.9]} 31...
Rc3 {[%clk 0:00:26.8]} 32. Qf4 {[%clk 0:00:44.5]} 32... Qxf4 {[%clk 0:00:19.9]}
33. gxf4 {[%clk 0:00:45.4]} 33... Rf3 {[%clk 0:00:20.2]} 34. Rxa7 {[%clk
0:00:26.6]} 34... Rxf4 {[%clk 0:00:20.2]} 35. Rxe7 {[%clk 0:00:26.3]} 35... Kf8
{[%clk 0:00:20.3]} 36. d6 {[%clk 0:00:26.4]} 36... Rxf2+ {[%clk 0:00:19.9]} 37.
Kg3 {[%clk 0:00:27]} 37... Rd2 {[%clk 0:00:20.3]} 38. hxg6 {[%clk 0:00:23.7]}
38... hxg6 {[%clk 0:00:16.7]} 39. e5 {[%clk 0:00:23.9]} 39... f6 {[%clk
0:00:15.3]} 40. Rh7 {[%clk 0:00:10.5]} 40... fxe5 {[%clk 0:00:14.9]} 41. d7
{[%clk 0:00:11.1]} 41... Rd4 {[%clk 0:00:13.8]} 42. Kf3 {[%clk 0:00:11.4]} 42...
g5 {[%clk 0:00:14.1]} 43. Ke3 {[%clk 0:00:11.7]} 43... g4 {[%clk 0:00:14.5]} 44.
Kf2 {[%clk 0:00:08.4]} 44... Rd3 {[%clk 0:00:14.1]} 45. Rh4 {[%clk 0:00:07.3]}
45... Rxd7 {[%clk 0:00:13.2]} 46. Rxg4 {[%clk 0:00:07.8]} 46... Ke7 {[%clk
0:00:13.6]} 47. Ke3 {[%clk 0:00:07.4]} 47... Ke6 {[%clk 0:00:13.6]} 48. Rg6+
{[%clk 0:00:07.5]} 48... Kf5 {[%clk 0:00:13.9]} 49. Ra6 {[%clk 0:00:07.9]} 49...
Rb7 {[%clk 0:00:14]} 50. Ra4 {[%clk 0:00:08.1]} 50... Rb3+ {[%clk 0:00:14]} 51.
Ke2 {[%clk 0:00:08.7]} 51... e4 {[%clk 0:00:14.3]} 52. Ra8 {[%clk 0:00:09]}
52... Kf4 {[%clk 0:00:14.7]} 53. Rf8+ {[%clk 0:00:09.4]} 53... Ke5 {[%clk
0:00:15.3]} 54. Re8+ {[%clk 0:00:10.1]} 54... Kf4 {[%clk 0:00:16]} 55. Rf8+
{[%clk 0:00:10.7]} 55... Ke5 {[%clk 0:00:16.7]} 56. Re8+ {[%clk 0:00:11.4]}
56... Kf4 {[%clk 0:00:17.4]} 57. Rf8+ {[%clk 0:00:12.1]} 1/2-1/2

[Event "Late-Titled-Tuesday-Blitz-June-04-2024"]
[Site "Chess.com"]
[Date "2024.06.04"]
[Round "8"]
[White "traviscottofficial"]
[Black "Eduard_Limonov"]
[Result "0-1"]
[WhiteElo "2682"]
[BlackElo "2838"]
[TimeControl "180+1"]
[EndTime "15:26:56 PDT"]
[Termination "Eduard_Limonov won by resignation"]

1. d4 {[%clk 0:02:59]} 1... d5 {[%clk 0:02:59.1]} 2. c4 {[%clk 0:02:59]} 2... e6
{[%clk 0:02:59.4]} 3. Nc3 {[%clk 0:02:58.9]} 3... c6 {[%clk 0:02:59.8]} 4. e4
{[%clk 0:02:57.8]} 4... dxe4 {[%clk 0:03:00]} 5. Nxe4 {[%clk 0:02:58.1]} 5...
Bb4+ {[%clk 0:03:00.6]} 6. Nc3 {[%clk 0:02:58.2]} 6... c5 {[%clk 0:02:56.8]} 7.
Nf3 {[%clk 0:02:49]} 7... Nf6 {[%clk 0:02:45.1]} 8. a3 {[%clk 0:02:34.1]} 8...
Ba5 {[%clk 0:02:42.4]} 9. h3 {[%clk 0:02:16.1]} 9... O-O {[%clk 0:02:16.1]} 10.
Be3 {[%clk 0:02:10.6]} 10... Nc6 {[%clk 0:02:03.2]} 11. dxc5 {[%clk 0:02:03.6]}
11... Bxc3+ {[%clk 0:02:03.2]} 12. bxc3 {[%clk 0:02:03.5]} 12... Qa5 {[%clk
0:02:03.7]} 13. Qb3 {[%clk 0:02:01.2]} 13... Ne4 {[%clk 0:02:03.3]} 14. Rc1
{[%clk 0:01:52.4]} 14... Nxc5 {[%clk 0:02:00.7]} 15. Qb5 {[%clk 0:01:50.7]}
15... Na4 {[%clk 0:01:58]} 16. Be2 {[%clk 0:01:42.5]} 16... Bd7 {[%clk
0:01:42.4]} 17. Nd4 {[%clk 0:01:26.1]} 17... Qc7 {[%clk 0:01:15]} 18. Nxc6
{[%clk 0:01:14.5]} 18... Bxc6 {[%clk 0:01:14.8]} 19. Qb4 {[%clk 0:01:10.1]}
19... a5 {[%clk 0:01:11.7]} 20. Qb3 {[%clk 0:01:03.9]} 20... Qe7 {[%clk
0:01:06.3]} 21. O-O {[%clk 0:00:57]} 21... h6 {[%clk 0:01:05.5]} 22. Rfd1 {[%clk
0:00:47.9]} 22... Rfc8 {[%clk 0:01:03.5]} 23. Bd4 {[%clk 0:00:39.2]} 23... Qg5
{[%clk 0:01:00.5]} 24. Bf1 {[%clk 0:00:36.1]} 24... Nc5 {[%clk 0:00:56.8]} 25.
Qb6 {[%clk 0:00:33.6]} 25... Ne4 {[%clk 0:00:52.8]} 26. Be3 {[%clk 0:00:31.4]}
26... Qe7 {[%clk 0:00:48.7]} 27. c5 {[%clk 0:00:27.9]} 27... Nf6 {[%clk
0:00:48.1]} 28. Rd6 {[%clk 0:00:15]} 28... Nd5 {[%clk 0:00:46.7]} 29. Qb3 {[%clk
0:00:13.8]} 29... Nxe3 {[%clk 0:00:46.9]} 30. fxe3 {[%clk 0:00:14.5]} 30... Qg5
{[%clk 0:00:47.5]} 31. c4 {[%clk 0:00:14.2]} 31... Qxc5 {[%clk 0:00:47.7]} 32.
Rd4 {[%clk 0:00:14]} 32... e5 {[%clk 0:00:47.2]} 33. Rdd1 {[%clk 0:00:13.2]}
33... Rd8 {[%clk 0:00:45.4]} 34. Kf2 {[%clk 0:00:13.2]} 34... f5 {[%clk
0:00:43.4]} 35. Be2 {[%clk 0:00:13.3]} 35... f4 {[%clk 0:00:43.2]} 36. Qc3
{[%clk 0:00:07.2]} 36... Kh8 {[%clk 0:00:40.4]} 37. Rxd8+ {[%clk 0:00:04.6]}
37... Rxd8 {[%clk 0:00:41.3]} 38. Rd1 {[%clk 0:00:05.3]} 38... Rf8 {[%clk
0:00:41.6]} 39. Ke1 {[%clk 0:00:02.2]} 39... fxe3 {[%clk 0:00:41.1]} 40. Rd3
{[%clk 0:00:02.5]} 40... e4 {[%clk 0:00:30.2]} 41. Rxe3 {[%clk 0:00:03]} 41...
Qg5 {[%clk 0:00:26.6]} 42. g3 {[%clk 0:00:02.2]} 42... Qf5 {[%clk 0:00:22.1]}
43. h4 {[%clk 0:00:02.7]} 43... Qf2+ {[%clk 0:00:22.3]} 44. Kd2 {[%clk
0:00:03.3]} 44... Rd8+ {[%clk 0:00:22.6]} 45. Kc2 {[%clk 0:00:03.8]} 45... Qf7
{[%clk 0:00:22.6]} 46. Kb2 {[%clk 0:00:03.3]} 46... Kh7 {[%clk 0:00:22.3]} 47.
Qc2 {[%clk 0:00:02.9]} 47... Qf6+ {[%clk 0:00:21.8]} 48. Qc3 {[%clk 0:00:03.6]}
48... Rd2+ {[%clk 0:00:21.6]} 49. Kc1 {[%clk 0:00:03.7]} 49... Qxc3+ {[%clk
0:00:21.1]} 50. Rxc3 {[%clk 0:00:04.2]} 50... Rxe2 {[%clk 0:00:21.6]} 0-1

[Event "Late-Titled-Tuesday-Blitz-June-04-2024"]
[Site "Chess.com"]
[Date "2024.06.04"]
[Round "8"]
[White "MNyuyu"]
[Black "th3d4rkness"]
[Result "1-0"]
[WhiteElo "2408"]
[BlackElo "2170"]
[TimeControl "180+1"]
[EndTime "15:27:00 PDT"]
[Termination "MNyuyu won on time"]

1. d4 {[%clk 0:03:00.9]} 1... Nf6 {[%clk 0:02:59.3]} 2. c4 {[%clk 0:03:00.8]}
2... e6 {[%clk 0:02:59.4]} 3. a3 {[%clk 0:03:00.4]} 3... c5 {[%clk 0:02:56.1]}
4. d5 {[%clk 0:02:59.2]} 4... exd5 {[%clk 0:02:55.6]} 5. cxd5 {[%clk 0:02:59.8]}
5... g6 {[%clk 0:02:54.6]} 6. Nc3 {[%clk 0:02:59.9]} 6... d6 {[%clk 0:02:53.4]}
7. Bf4 {[%clk 0:02:59.8]} 7... a6 {[%clk 0:02:48.5]} 8. a4 {[%clk 0:02:59.2]}
8... Bg7 {[%clk 0:02:48]} 9. e3 {[%clk 0:02:59.5]} 9... O-O {[%clk 0:02:48]} 10.
h3 {[%clk 0:02:58.9]} 10... Qe7 {[%clk 0:02:43]} 11. Nf3 {[%clk 0:02:58.5]}
11... Nbd7 {[%clk 0:02:41.2]} 12. Be2 {[%clk 0:02:54.7]} 12... Nh5 {[%clk
0:02:21.8]} 13. Bh2 {[%clk 0:02:52.6]} 13... f5 {[%clk 0:02:16.9]} 14. O-O
{[%clk 0:02:49.5]} 14... Ndf6 {[%clk 0:02:00.7]} 15. Re1 {[%clk 0:02:35.4]}
15... Ne4 {[%clk 0:01:52.1]} 16. Qc2 {[%clk 0:02:24.5]} 16... Nxc3 {[%clk
0:01:39.8]} 17. bxc3 {[%clk 0:02:23.4]} 17... Nf6 {[%clk 0:01:39]} 18. Nd2
{[%clk 0:01:47.6]} 18... Kh8 {[%clk 0:01:19.3]} 19. Nc4 {[%clk 0:01:40.8]} 19...
Rd8 {[%clk 0:01:08.3]} 20. Bf3 {[%clk 0:01:34.9]} 20... Ne4 {[%clk 0:00:52.4]}
21. Bxe4 {[%clk 0:01:34.4]} 21... fxe4 {[%clk 0:00:52.1]} 22. Rab1 {[%clk
0:01:29.7]} 22... Rb8 {[%clk 0:00:49.3]} 23. Rb6 {[%clk 0:01:28.7]} 23... Be5
{[%clk 0:00:30.6]} 24. Nxe5 {[%clk 0:01:26.8]} 24... dxe5 {[%clk 0:00:30.4]} 25.
Qxe4 {[%clk 0:01:25.8]} 25... Re8 {[%clk 0:00:21.5]} 26. Re6 {[%clk 0:00:54.4]}
26... Bxe6 {[%clk 0:00:17.6]} 27. Bxe5+ {[%clk 0:00:53.4]} 27... Kg8 {[%clk
0:00:17.8]} 28. Bxb8 {[%clk 0:00:53.2]} 28... Bf5 {[%clk 0:00:14]} 29. Qxe7
{[%clk 0:00:52.5]} 29... Rxe7 {[%clk 0:00:14.4]} 30. d6 {[%clk 0:00:52]} 30...
Re8 {[%clk 0:00:12.8]} 31. Bc7 {[%clk 0:00:51.7]} 31... Bd7 {[%clk 0:00:12.9]}
32. e4 {[%clk 0:00:51]} 32... Kf7 {[%clk 0:00:13.3]} 33. f4 {[%clk 0:00:50]}
33... Ke6 {[%clk 0:00:13.7]} 34. g4 {[%clk 0:00:47.1]} 34... Bxa4 {[%clk
0:00:12.9]} 35. Kf2 {[%clk 0:00:44.7]} 35... Rf8 {[%clk 0:00:12.5]} 36. f5+
{[%clk 0:00:40.6]} 36... gxf5 {[%clk 0:00:11.8]} 37. gxf5+ {[%clk 0:00:40.8]}
37... Kd7 {[%clk 0:00:11.3]} 38. Kg3 {[%clk 0:00:39.1]} 38... Bc6 {[%clk
0:00:11.2]} 39. Kf4 {[%clk 0:00:38.7]} 39... b5 {[%clk 0:00:09.5]} 40. e5 {[%clk
0:00:38.2]} 40... b4 {[%clk 0:00:09.2]} 41. cxb4 {[%clk 0:00:37.8]} 41... cxb4
{[%clk 0:00:09.1]} 42. Rg1 {[%clk 0:00:36.2]} 42... Bd5 {[%clk 0:00:06.5]} 43.
Rg7+ {[%clk 0:00:32.1]} 43... Kc6 {[%clk 0:00:05.2]} 44. Ba5 {[%clk 0:00:22.8]}
44... b3 {[%clk 0:00:05.6]} 45. Ke3 {[%clk 0:00:19.8]} 45... b2 {[%clk
0:00:04.7]} 46. Rg1 {[%clk 0:00:17.1]} 46... Rb8 {[%clk 0:00:02.1]} 47. Rb1
{[%clk 0:00:14.3]} 47... Ba2 {[%clk 0:00:02.2]} 48. Rxb2 {[%clk 0:00:12.9]}
48... Rxb2 {[%clk 0:00:02.2]} 49. Bc7 {[%clk 0:00:10.8]} 1-0

[Event "Late-Titled-Tuesday-Blitz-June-04-2024"]
[Site "Chess.com"]
[Date "2024.06.04"]
[Round "8"]
[White "merinasian"]
[Black "fly_21"]
[Result "1-0"]
[WhiteElo "2502"]
[BlackElo "2600"]
[TimeControl "180+1"]
[EndTime "15:27:05 PDT"]
[Termination "merinasian won on time"]

1. d4 {[%clk 0:03:00.9]} 1... Nf6 {[%clk 0:03:00.2]} 2. Nf3 {[%clk 0:03:01.4]}
2... g6 {[%clk 0:02:59.9]} 3. Bf4 {[%clk 0:03:00.5]} 3... Bg7 {[%clk 0:02:59.5]}
4. e3 {[%clk 0:03:00.5]} 4... O-O {[%clk 0:02:59.3]} 5. h3 {[%clk 0:03:00.7]}
5... d6 {[%clk 0:02:59.4]} 6. Be2 {[%clk 0:03:00.9]} 6... c5 {[%clk 0:02:59.6]}
7. O-O {[%clk 0:03:01]} 7... Qb6 {[%clk 0:02:58.7]} 8. Qc1 {[%clk 0:03:01.1]}
8... Nc6 {[%clk 0:02:56.7]} 9. c3 {[%clk 0:03:00.8]} 9... cxd4 {[%clk
0:02:55.2]} 10. exd4 {[%clk 0:03:00.1]} 10... Bf5 {[%clk 0:02:54.3]} 11. Nbd2
{[%clk 0:02:59.8]} 11... Rac8 {[%clk 0:02:53.8]} 12. Nc4 {[%clk 0:02:55.3]}
12... Qd8 {[%clk 0:02:50.6]} 13. Qd1 {[%clk 0:02:51.7]} 13... Re8 {[%clk
0:02:45.2]} 14. Ne3 {[%clk 0:02:48.4]} 14... Qb6 {[%clk 0:02:33.3]} 15. Nxf5
{[%clk 0:02:46.7]} 15... gxf5 {[%clk 0:02:33.6]} 16. Qb3 {[%clk 0:02:44.9]}
16... Qxb3 {[%clk 0:02:27.3]} 17. axb3 {[%clk 0:02:44.6]} 17... e5 {[%clk
0:02:27.6]} 18. dxe5 {[%clk 0:02:44.7]} 18... dxe5 {[%clk 0:02:27.2]} 19. Bh2
{[%clk 0:02:43.9]} 19... a6 {[%clk 0:02:22.3]} 20. Rfd1 {[%clk 0:02:43]} 20...
Ne4 {[%clk 0:02:15.7]} 21. Bc4 {[%clk 0:02:40.8]} 21... Re7 {[%clk 0:02:14.7]}
22. Rd5 {[%clk 0:02:23.2]} 22... Nf6 {[%clk 0:02:00.4]} 23. Rd2 {[%clk 0:02:16]}
23... Ne4 {[%clk 0:02:00.3]} 24. Rd5 {[%clk 0:02:11.6]} 24... Nf6 {[%clk
0:02:00.1]} 25. Rdd1 {[%clk 0:02:01]} 25... b5 {[%clk 0:01:52.7]} 26. Bd5 {[%clk
0:01:54]} 26... Nxd5 {[%clk 0:01:09.8]} 27. Rxd5 {[%clk 0:01:54.9]} 27... b4
{[%clk 0:01:09.2]} 28. Rxa6 {[%clk 0:01:40.3]} 28... bxc3 {[%clk 0:01:08.3]} 29.
bxc3 {[%clk 0:01:41.2]} 29... e4 {[%clk 0:01:08.8]} 30. Nh4 {[%clk 0:01:36.8]}
30... Ra7 {[%clk 0:00:56.5]} 31. Rxa7 {[%clk 0:01:28.2]} 31... Nxa7 {[%clk
0:00:56.3]} 32. Nxf5 {[%clk 0:01:28.2]} 32... Rxc3 {[%clk 0:00:37.8]} 33. Bf4
{[%clk 0:01:22.3]} 33... Bf6 {[%clk 0:00:29]} 34. Rd6 {[%clk 0:01:06.3]} 34...
Rc6 {[%clk 0:00:27.3]} 35. Rd7 {[%clk 0:00:53.2]} 35... Nc8 {[%clk 0:00:10.6]}
36. Nh6+ {[%clk 0:00:50.6]} 36... Kg7 {[%clk 0:00:10.3]} 37. Nxf7 {[%clk
0:00:50.9]} 37... Kg6 {[%clk 0:00:10.1]} 38. Ne5+ {[%clk 0:00:47.4]} 38... Bxe5
{[%clk 0:00:09.8]} 39. Bxe5 {[%clk 0:00:48.1]} 39... Kf5 {[%clk 0:00:09.8]} 40.
Bg3 {[%clk 0:00:45.1]} 40... h6 {[%clk 0:00:09.9]} 41. b4 {[%clk 0:00:44]} 41...
Rb6 {[%clk 0:00:09.4]} 42. Rd5+ {[%clk 0:00:41.1]} 42... Kf6 {[%clk 0:00:09.1]}
43. b5 {[%clk 0:00:40.5]} 43... Rb7 {[%clk 0:00:05.9]} 44. Bf4 {[%clk 0:00:37]}
44... Ne7 {[%clk 0:00:03.6]} 45. Rc5 {[%clk 0:00:34.7]} 45... Ke6 {[%clk
0:00:01.2]} 46. Bxh6 {[%clk 0:00:33.2]} 46... Kd6 {[%clk 0:00:01.9]} 47. Rh5
{[%clk 0:00:31.2]} 47... Nd5 {[%clk 0:00:02.3]} 48. Bf8+ {[%clk 0:00:24.9]}
48... Ke6 {[%clk 0:00:02.6]} 49. Rh6+ {[%clk 0:00:23.8]} 49... Kf7 {[%clk
0:00:02.9]} 50. Bd6 {[%clk 0:00:21.5]} 50... Rxb5 {[%clk 0:00:03]} 51. Bg3
{[%clk 0:00:16.2]} 51... Nf6 {[%clk 0:00:02.3]} 52. Rh4 {[%clk 0:00:15.1]} 52...
Rb2 {[%clk 0:00:01.6]} 53. Kh2 {[%clk 0:00:14.1]} 53... Ke6 {[%clk 0:00:02.1]}
54. Rf4 {[%clk 0:00:14]} 1-0

[Event "Late-Titled-Tuesday-Blitz-June-04-2024"]
[Site "Chess.com"]
[Date "2024.06.04"]
[Round "8"]
[White "albayo"]
[Black "The_Sherman_Variation"]
[Result "0-1"]
[WhiteElo "2360"]
[BlackElo "2602"]
[TimeControl "180+1"]
[EndTime "15:27:07 PDT"]
[Termination "The_Sherman_Variation won on time"]

1. c4 {[%clk 0:03:00.1]} 1... e6 {[%clk 0:02:55.9]} 2. Nf3 {[%clk 0:02:59.8]}
2... d5 {[%clk 0:02:56.3]} 3. g3 {[%clk 0:03:00.5]} 3... Nf6 {[%clk 0:02:55.6]}
4. Bg2 {[%clk 0:03:01]} 4... Be7 {[%clk 0:02:56.5]} 5. O-O {[%clk 0:03:01.2]}
5... O-O {[%clk 0:02:57.1]} 6. Qc2 {[%clk 0:03:01.4]} 6... c5 {[%clk 0:02:53.8]}
7. d3 {[%clk 0:02:59.4]} 7... Nc6 {[%clk 0:02:53.3]} 8. b3 {[%clk 0:02:59.4]}
8... d4 {[%clk 0:02:52.2]} 9. e3 {[%clk 0:02:58.8]} 9... dxe3 {[%clk 0:02:51.3]}
10. Bxe3 {[%clk 0:02:58.9]} 10... Nb4 {[%clk 0:02:51.5]} 11. Qd1 {[%clk
0:02:56.5]} 11... Nxd3 {[%clk 0:02:47]} 12. Nc3 {[%clk 0:02:56.1]} 12... e5
{[%clk 0:02:42.9]} 13. Nd5 {[%clk 0:02:47]} 13... Nxd5 {[%clk 0:02:40.9]} 14.
Qxd3 {[%clk 0:02:22.9]} 14... Nxe3 {[%clk 0:02:37.2]} 15. Qxe3 {[%clk
0:02:23.8]} 15... f6 {[%clk 0:02:35.9]} 16. Rfd1 {[%clk 0:02:20.9]} 16... Qc7
{[%clk 0:02:35.1]} 17. Nd2 {[%clk 0:02:19.7]} 17... Be6 {[%clk 0:02:32.2]} 18.
Ne4 {[%clk 0:02:18.5]} 18... Rad8 {[%clk 0:02:31.3]} 19. Nc3 {[%clk 0:02:18.6]}
19... Rd4 {[%clk 0:02:26.7]} 20. Bd5 {[%clk 0:02:18.2]} 20... Bxd5 {[%clk
0:02:19.7]} 21. Nxd5 {[%clk 0:02:19.1]} 21... Qd6 {[%clk 0:02:18.5]} 22. Qf3
{[%clk 0:02:15.5]} 22... Rd8 {[%clk 0:02:16.5]} 23. Kg2 {[%clk 0:02:08.5]} 23...
Rd7 {[%clk 0:02:13.8]} 24. Qf5 {[%clk 0:02:05.3]} 24... Bd8 {[%clk 0:02:12.4]}
25. h4 {[%clk 0:02:03.4]} 25... b5 {[%clk 0:02:10.5]} 26. Rac1 {[%clk
0:01:59.8]} 26... bxc4 {[%clk 0:02:09.5]} 27. bxc4 {[%clk 0:02:00.7]} 27... Qc6
{[%clk 0:02:05.6]} 28. Rxd4 {[%clk 0:01:52.3]} 28... cxd4 {[%clk 0:02:02.8]} 29.
h5 {[%clk 0:01:52.1]} 29... h6 {[%clk 0:01:55.9]} 30. Qg6 {[%clk 0:01:46.6]}
30... Rd6 {[%clk 0:01:50.2]} 31. Qe4 {[%clk 0:01:20.1]} 31... Qc5 {[%clk
0:01:43.6]} 32. Kh2 {[%clk 0:01:06.5]} 32... d3 {[%clk 0:01:35.9]} 33. Qe3
{[%clk 0:00:52]} 33... Qxe3 {[%clk 0:01:30.4]} 34. fxe3 {[%clk 0:00:52.9]} 34...
Rc6 {[%clk 0:01:29.1]} 35. e4 {[%clk 0:00:46.5]} 35... d2 {[%clk 0:01:27]} 36.
Rd1 {[%clk 0:00:46.6]} 36... Rxc4 {[%clk 0:01:25]} 37. Rxd2 {[%clk 0:00:46.1]}
37... Rxe4 {[%clk 0:01:24.5]} 38. Nc3 {[%clk 0:00:32.5]} 38... Rd4 {[%clk
0:01:24.3]} 39. Rxd4 {[%clk 0:00:32.8]} 39... exd4 {[%clk 0:01:25.2]} 40. Ne4
{[%clk 0:00:32]} 40... f5 {[%clk 0:01:22.8]} 41. Nc5 {[%clk 0:00:30.3]} 41...
Bb6 {[%clk 0:01:20.5]} 42. Nd3 {[%clk 0:00:30.2]} 42... Kf7 {[%clk 0:01:20.6]}
43. Kg2 {[%clk 0:00:30]} 43... Kf6 {[%clk 0:01:20.5]} 44. Kf3 {[%clk 0:00:30.5]}
44... Kg5 {[%clk 0:01:20.8]} 45. Nf4 {[%clk 0:00:30.6]} 45... Kf6 {[%clk
0:01:13.7]} 46. Nd3 {[%clk 0:00:28.5]} 46... a5 {[%clk 0:01:13.9]} 47. a4 {[%clk
0:00:28.3]} 47... Ba7 {[%clk 0:01:14.2]} 48. Nf4 {[%clk 0:00:24]} 48... Bb8
{[%clk 0:01:08.4]} 49. Nd5+ {[%clk 0:00:06.2]} 49... Kg5 {[%clk 0:01:05.5]} 50.
Nb6 {[%clk 0:00:05.6]} 50... Kxh5 {[%clk 0:01:02.5]} 51. Nc4 {[%clk 0:00:02.4]}
51... Bc7 {[%clk 0:01:02.8]} 52. Nd2 {[%clk 0:00:01.6]} 52... Kg5 {[%clk
0:01:01.7]} 53. Nb3 {[%clk 0:00:02]} 53... Bb6 {[%clk 0:01:00.6]} 54. Nd2 {[%clk
0:00:02.5]} 54... Kf6 {[%clk 0:00:59.4]} 55. Kf4 {[%clk 0:00:03]} 55... g5+
{[%clk 0:00:58.1]} 56. Kf3 {[%clk 0:00:03.9]} 56... h5 {[%clk 0:00:58]} 57. Nc4
{[%clk 0:00:03.7]} 57... Bc7 {[%clk 0:00:58.2]} 58. Ke2 {[%clk 0:00:03]} 58...
g4 {[%clk 0:00:55.1]} 59. Kd3 {[%clk 0:00:03]} 59... Bxg3 {[%clk 0:00:53.7]} 60.
Nxa5 {[%clk 0:00:03.1]} 60... h4 {[%clk 0:00:54.3]} 61. Ke2 {[%clk 0:00:01.7]}
61... h3 {[%clk 0:00:53.8]} 62. Kf1 {[%clk 0:00:02.2]} 62... Bc7 {[%clk
0:00:52]} 63. Nc6 {[%clk 0:00:02.1]} 63... g3 {[%clk 0:00:51.5]} 64. Nxd4 {[%clk
0:00:01.6]} 64... g2+ {[%clk 0:00:51.7]} 0-1

[Event "Late-Titled-Tuesday-Blitz-June-04-2024"]
[Site "Chess.com"]
[Date "2024.06.04"]
[Round "8"]
[White "GMTalks_Youtube"]
[Black "nabukatnezarr"]
[Result "1-0"]
[WhiteElo "2739"]
[BlackElo "2579"]
[TimeControl "180+1"]
[EndTime "15:27:10 PDT"]
[Termination "GMTalks_Youtube won by resignation"]

1. d4 {[%clk 0:03:00.9]} 1... Nf6 {[%clk 0:02:59.7]} 2. c4 {[%clk 0:03:00.9]}
2... e6 {[%clk 0:03:00]} 3. Nc3 {[%clk 0:03:00.4]} 3... Bb4 {[%clk 0:02:59.7]}
4. e3 {[%clk 0:03:00.5]} 4... O-O {[%clk 0:02:59.2]} 5. Bd3 {[%clk 0:03:00.2]}
5... Bxc3+ {[%clk 0:02:56.1]} 6. bxc3 {[%clk 0:02:59.6]} 6... d5 {[%clk
0:02:57]} 7. cxd5 {[%clk 0:02:58.1]} 7... exd5 {[%clk 0:02:56.8]} 8. Ne2 {[%clk
0:02:57.7]} 8... c5 {[%clk 0:02:56.5]} 9. O-O {[%clk 0:02:56.9]} 9... Nc6 {[%clk
0:02:52.4]} 10. Ng3 {[%clk 0:02:52]} 10... Qa5 {[%clk 0:02:48.2]} 11. Bb2 {[%clk
0:02:47.5]} 11... b6 {[%clk 0:02:44.5]} 12. Re1 {[%clk 0:02:39.7]} 12... Ba6
{[%clk 0:02:35.1]} 13. Bb1 {[%clk 0:02:25.5]} 13... Bc4 {[%clk 0:02:30.2]} 14.
f3 {[%clk 0:02:23]} 14... Rad8 {[%clk 0:02:29.2]} 15. Bc2 {[%clk 0:02:10.4]}
15... g6 {[%clk 0:02:22.5]} 16. e4 {[%clk 0:01:57.5]} 16... dxe4 {[%clk
0:02:02.6]} 17. fxe4 {[%clk 0:01:53.6]} 17... Nd7 {[%clk 0:01:23.5]} 18. Qf3
{[%clk 0:01:39.1]} 18... cxd4 {[%clk 0:00:58.5]} 19. cxd4 {[%clk 0:01:37.3]}
19... Nb4 {[%clk 0:00:46.9]} 20. Bc3 {[%clk 0:01:14.3]} 20... Qa3 {[%clk
0:00:46.7]} 21. Bb3 {[%clk 0:01:10.1]} 21... Rc8 {[%clk 0:00:40.1]} 22. d5
{[%clk 0:00:32.8]} 22... Bxb3 {[%clk 0:00:30.1]} 23. axb3 {[%clk 0:00:29.5]}
23... Qxb3 {[%clk 0:00:31]} 24. Bxb4 {[%clk 0:00:12.7]} 24... Qxb4 {[%clk
0:00:31.9]} 25. Qf2 {[%clk 0:00:10.2]} 25... a5 {[%clk 0:00:28.4]} 26. e5 {[%clk
0:00:08.6]} 26... Qc5 {[%clk 0:00:24.6]} 27. Ne4 {[%clk 0:00:07.9]} 27... Qxf2+
{[%clk 0:00:24]} 28. Nxf2 {[%clk 0:00:07.6]} 28... Rfe8 {[%clk 0:00:22.9]} 29.
Ng4 {[%clk 0:00:06.5]} 29... h5 {[%clk 0:00:21.8]} 30. e6 {[%clk 0:00:07.4]}
30... Nc5 {[%clk 0:00:05.5]} 31. Nf6+ {[%clk 0:00:06.6]} 31... Kg7 {[%clk
0:00:06.1]} 32. Nxe8+ {[%clk 0:00:07.2]} 32... Rxe8 {[%clk 0:00:07]} 33. e7
{[%clk 0:00:07.7]} 33... a4 {[%clk 0:00:06.2]} 34. d6 {[%clk 0:00:08.1]} 34...
b5 {[%clk 0:00:05.7]} 35. Rab1 {[%clk 0:00:08.7]} 35... a3 {[%clk 0:00:04.3]}
36. Rxb5 {[%clk 0:00:07.6]} 36... Nd3 {[%clk 0:00:05.1]} 37. Rd1 {[%clk
0:00:07.2]} 37... Nf4 {[%clk 0:00:04.2]} 38. Ra5 {[%clk 0:00:07.3]} 38... Ne2+
{[%clk 0:00:04.3]} 39. Kf2 {[%clk 0:00:07]} 39... a2 {[%clk 0:00:05.2]} 40. Rxa2
{[%clk 0:00:06.7]} 40... Nc3 {[%clk 0:00:06.1]} 41. Rad2 {[%clk 0:00:07]} 41...
Ne4+ {[%clk 0:00:05.7]} 42. Ke3 {[%clk 0:00:05.5]} 42... Nxd2 {[%clk 0:00:06.6]}
43. Rxd2 {[%clk 0:00:05.6]} 43... Kf6 {[%clk 0:00:07.3]} 44. Ke4 {[%clk
0:00:06.2]} 44... Ke6 {[%clk 0:00:07.3]} 45. Rd4 {[%clk 0:00:06.6]} 45... Kd7
{[%clk 0:00:07.5]} 46. Kf4 {[%clk 0:00:07.2]} 46... f6 {[%clk 0:00:08]} 47. g4
{[%clk 0:00:06.7]} 47... hxg4 {[%clk 0:00:07.8]} 48. Kxg4 {[%clk 0:00:07.4]}
48... Rh8 {[%clk 0:00:08.7]} 49. h4 {[%clk 0:00:07.7]} 49... Rh7 {[%clk
0:00:08.1]} 50. Rd2 {[%clk 0:00:08]} 50... Rh8 {[%clk 0:00:08.7]} 51. Kg3 {[%clk
0:00:08.2]} 51... Rh7 {[%clk 0:00:08.8]} 52. Re2 {[%clk 0:00:08.8]} 52... Rh8
{[%clk 0:00:09.5]} 53. Kg4 {[%clk 0:00:09.2]} 53... Kxd6 {[%clk 0:00:09.2]} 54.
e8=Q {[%clk 0:00:08.6]} 54... f5+ {[%clk 0:00:10.1]} 55. Kg5 {[%clk 0:00:08.4]}
55... Rxe8 {[%clk 0:00:10.8]} 56. Rxe8 {[%clk 0:00:07.7]} 1-0